{"text_format":"1","workbook":"xlsx","n_sheets":3,"sheets":["Сводная таблица","Данные","Списки выпад.для \"данные\""],"not_rendered":{"charts":0,"images":0,"macros":1,"external_links":0,"defined_names":3,"comments":2,"pivot_tables":1},"unopened":[],"bounds":{"document_bytes":16777216,"sheet_cells":100000,"rows_first":2000,"rows_last":500,"rows_between":2000,"halvings":0,"cell_chars":16384,"cell_head_chars":4096},"cells_cut":0,"cells_raw":0,"read":"whole","date_system":"1900"}

{"sheet":"Сводная таблица","index":0,"n_rows":22,"n_cols":5,"rows_kept":22,"cut":false,"hidden":false,"merged":[]}
[null,{"$f":"TODAY()","v":"2016-10-18"}]
[null,null," Дата постановки"," Срок (Deadline)"," Просроченно дней"]
[null,"Главный инженер"]
[null,"Генеральный директор (собственник)"]
[1,"Восстановить мешалку и поставить в цех ПФ ","2016-09-28",null,0]
[2,"Провести инвентаризацию весов с предоставлением описи.","2016-09-29","2016-11-01",0]
[3,"Разработать схему расположения весов на производстве.","2016-09-29","2016-11-01",0]
[4,"Подобрать контрагента для заключения договора на утилизацию шин, аккумуляторов и прочего.","2016-09-29","2016-11-01",0]
[5,"Отремонтировать упаковочное оборудование \"компакт2\".","2016-10-03","2016-11-01",0]
[null,"Заместитель ген.директора по экономике"]
[null,"Генеральный директор (собственник)"]
[1,"Проверить и по необходимости пересмотреть нормы списания по оболочке.","2016-09-28","2016-10-07",11]
[null,"Начальник ОК"]
[null,"Генеральный директор (собственник)"]
[1,"Подготовить, для утверждения генеральным директором, штатное расписание МК Олимпия","2016-09-27","2016-10-11",7]
[null,"(пусто)"]
[null,"(пусто)"]
[1,"(пусто)",null,null,0]
[null,"Менеджер по снабжению"]
[null,"Генеральный директор (собственник)"]
[1,"Создать Регламент процесса получения груза и сопроводительных документов от транспортных компаний и прочих поставщиков.","2016-09-30","2016-10-05",13]
[2,"Обеспечить производство подставками для ног (размеры и количество и др.характеристики уточнить у мастеров).","2016-09-30","2016-10-05",13]

{"sheet":"Данные","index":1,"n_rows":25,"n_cols":14,"rows_kept":25,"cut":false,"hidden":false,"merged":[]}
[null,"Автор : Фин.менеджер Наринян А.Б."]
["п/п","Задача","Важность","Месяц","Дата постановки","Срок (Deadline)","Просроченно дней","Направленность","Инициатор","Проверяет","Исполнитель","Контролирует","Фиксирует","Ход выполнения"]
[1,"Подготовить, для утверждения генеральным директором, штатное расписание МК Олимпия","С","Октябрь","2016-09-27","2016-10-11",{"$f":"IF(OR(F3=\"\",(TODAY()-F3)<0),0,TODAY()-F3)","v":7},"Оперативная","Генеральный директор (собственник)","Генеральный директор (собственник)","Начальник ОК","Генеральный директор (собственник)","Финансовый менеджер","К выполнению"]
[2,"Восстановить мешалку и поставить в цех ПФ ","А","Октябрь","2016-09-28",null,{"$f":"IF(OR(F4=\"\",(TODAY()-F4)<0),0,TODAY()-F4)","v":0},"Оперативная","Генеральный директор (собственник)","Генеральный директор (собственник)","Главный инженер","Генеральный директор (собственник)","Финансовый менеджер","К выполнению"]
[3,"Проверить и по необходимости пересмотреть нормы списания по оболочке.","В","Октябрь","2016-09-28","2016-10-07",11,"Оперативная","Генеральный директор (собственник)","Генеральный директор (собственник)","Заместитель ген.директора по экономике","Генеральный директор (собственник)","Финансовый менеджер","К выполнению"]
[4,"Провести инвентаризацию весов с предоставлением описи.","В","Ноябрь","2016-09-29","2016-11-01",0,"Оперативная","Генеральный директор (собственник)","Генеральный директор (собственник)","Главный инженер","Генеральный директор (собственник)","Финансовый менеджер","К выполнению"]
[5,"Разработать схему расположения весов на производстве.","В","Ноябрь","2016-09-29","2016-11-01",{"$f":"IF(OR(F7=\"\",(TODAY()-F7)<0),0,TODAY()-F7)","v":0},"Оперативная","Генеральный директор (собственник)","Генеральный директор (собственник)","Главный инженер","Генеральный директор (собственник)","Финансовый менеджер","К выполнению"]
[6,"Подобрать контрагента для заключения договора на утилизацию шин, аккумуляторов и прочего.","В","Ноябрь","2016-09-29","2016-11-01",0,"Оперативная","Генеральный директор (собственник)","Генеральный директор (собственник)","Главный инженер","Генеральный директор (собственник)","Финансовый менеджер","К выполнению"]
[7,"Создать Регламент процесса получения груза и сопроводительных документов от транспортных компаний и прочих поставщиков.","В","Октябрь","2016-09-30","2016-10-05",13,"Оперативная","Генеральный директор (собственник)","Генеральный директор (собственник)","Менеджер по снабжению","Генеральный директор (собственник)","Финансовый менеджер","К выполнению"]
[8,"Обеспечить производство подставками для ног (размеры и количество и др.характеристики уточнить у мастеров).","В","Октябрь","2016-09-30","2016-10-05",13,"Оперативная","Генеральный директор (собственник)","Генеральный директор (собственник)","Менеджер по снабжению","Генеральный директор (собственник)","Финансовый менеджер","К выполнению"]
[9,"Отремонтировать упаковочное оборудование \"компакт2\".","В","Октябрь","2016-10-03","2016-11-01",0,"Оперативная","Генеральный директор (собственник)","Генеральный директор (собственник)","Главный инженер","Генеральный директор (собственник)","Финансовый менеджер","К выполнению"]
[10,null,null,null,null,null,0]
[11,null,null,null,null,null,0]
[12,null,null,null,null,null,0]
[13,null,null,null,null,null,0]
[14,null,null,null,null,null,0]
[15,null,null,null,null,null,0]
[16,null,null,null,null,null,0]
[17,null,null,null,null,null,0]
[18,null,null,null,null,null,0]
[19,null,null,null,null,null,0]
[20,null,null,null,null,null,0]
[21,null,null,null,null,null,0]
[22,null,null,null,null,null,0]
[23,null,null,null,null,null,0]

{"sheet":"Списки выпад.для \"данные\"","index":2,"n_rows":370,"n_cols":12,"rows_kept":370,"cut":false,"hidden":false,"merged":[]}
[]
[]
[null,"Важность",null,"Срок",null,"Месяц",null,"Направленность",null,"Должность",null,"Ход выполнения"]
[null,"А",null,"2016-01-01",null,"Январь",null,"Стратегическая",null,"Аппаратчик ТО(термической обработки)",null,"К выполнению"]
[null,"В",null,"2016-01-02",null,"Февраль",null,"Тактическая",null,"Бухгалтер",null,"Выполнено"]
[null,"С",null,"2016-01-03",null,"Март",null,"Оперативная",null,"Все руководители подразделений",null,"Отменено"]
[null,null,null,"2016-01-04",null,"Апрель",null,null,null,"Весовщик",null,"Просроченно"]
[null,null,null,"2016-01-05",null,"Май",null,null,null,"Весовщик (мясное сырье)"]
[null,null,null,"2016-01-06",null,"Июнь",null,null,null,"Водитель"]
[null,null,null,"2016-01-07",null,"Июль",null,null,null,"Генеральный директор (собственник)"]
[null,null,null,"2016-01-08",null,"Август",null,null,null,"Главный бухгалтер"]
[null,null,null,"2016-01-09",null,"Сентябрь",null,null,null,"Главный инженер"]
[null,null,null,"2016-01-10",null,"Октябрь",null,null,null,"Грузчик"]
[null,null,null,"2016-01-11",null,"Ноябрь",null,null,null,"Грузчик-сборщик продукции"]
[null,null,null,"2016-01-12",null,"Декабрь",null,null,null,"Жиловщик свин/говяд."]
[null,null,null,"2016-01-13",null,"Ежемесячно",null,null,null,"Зав.производством"]
[null,null,null,"2016-01-14",null,null,null,null,null,"Заведующий складом"]
[null,null,null,"2016-01-15",null,null,null,null,null,"Зам.начальника отдела продаж"]
[null,null,null,"2016-01-16",null,null,null,null,null,"Заместитель ген.дир.по качеству"]
[null,null,null,"2016-01-17",null,null,null,null,null,"Заместитель ген.директора по финансам"]
[null,null,null,"2016-01-18",null,null,null,null,null,"Заместитель ген.директора по экономике"]
[null,null,null,"2016-01-19",null,null,null,null,null,"Кассир"]
[null,null,null,"2016-01-20",null,null,null,null,null,"Коммерческий директор"]
[null,null,null,"2016-01-21",null,null,null,null,null,"Мастер"]
[null,null,null,"2016-01-22",null,null,null,null,null,"Медик"]
[null,null,null,"2016-01-23",null,null,null,null,null,"Менеджер по продажам"]
[null,null,null,"2016-01-24",null,null,null,null,null,"Менеджер по снабжению"]
[null,null,null,"2016-01-25",null,null,null,null,null,"Механик гаража"]
[null,null,null,"2016-01-26",null,null,null,null,null,"Начальник ОК"]
[null,null,null,"2016-01-27",null,null,null,null,null,"Обвальщик птицы"]
[null,null,null,"2016-01-28",null,null,null,null,null,"Обвальщик свин/говяд."]
[null,null,null,"2016-01-29",null,null,null,null,null,"Оператор"]
[null,null,null,"2016-01-30",null,null,null,null,null,"Охранник"]
[null,null,null,"2016-01-31",null,null,null,null,null,"Повар"]
[null,null,null,"2016-02-01",null,null,null,null,null,"Прачка"]
[null,null,null,"2016-02-02",null,null,null,null,null,"Программист 1С"]
[null,null,null,"2016-02-03",null,null,null,null,null,"Рабочие"]
[null,null,null,"2016-02-04",null,null,null,null,null,"Секретарь-делопроизводитель"]
[null,null,null,"2016-02-05",null,null,null,null,null,"Системный администратор"]
[null,null,null,"2016-02-06",null,null,null,null,null,"Слесарь"]
[null,null,null,"2016-02-07",null,null,null,null,null,"Составитель фарша"]
[null,null,null,"2016-02-08",null,null,null,null,null,"Старший механик"]
[null,null,null,"2016-02-09",null,null,null,null,null,"Супервайзер"]
[null,null,null,"2016-02-10",null,null,null,null,null,"Торговый представитель"]
[null,null,null,"2016-02-11",null,null,null,null,null,"Уборщик помещений"]
[null,null,null,"2016-02-12",null,null,null,null,null,"Упаковщик"]
[null,null,null,"2016-02-13",null,null,null,null,null,"Финансовый менеджер"]
[null,null,null,"2016-02-14",null,null,null,null,null,"Формовщик"]
[null,null,null,"2016-02-15",null,null,null,null,null,"Экономист"]
[null,null,null,"2016-02-16",null,null,null,null,null,"Электрогазосварщик"]
[null,null,null,"2016-02-17",null,null,null,null,null,"Электромеханик"]
[null,null,null,"2016-02-18",null,null,null,null,null,"Электромонтер"]
[null,null,null,"2016-02-19"]
[null,null,null,"2016-02-20"]
[null,null,null,"2016-02-21"]
[null,null,null,"2016-02-22"]
[null,null,null,"2016-02-23"]
[null,null,null,"2016-02-24"]
[null,null,null,"2016-02-25"]
[null,null,null,"2016-02-26"]
[null,null,null,"2016-02-27"]
[null,null,null,"2016-02-28"]
[null,null,null,"2016-02-29"]
[null,null,null,"2016-03-01"]
[null,null,null,"2016-03-02"]
[null,null,null,"2016-03-03"]
[null,null,null,"2016-03-04"]
[null,null,null,"2016-03-05"]
[null,null,null,"2016-03-06"]
[null,null,null,"2016-03-07"]
[null,null,null,"2016-03-08"]
[null,null,null,"2016-03-09"]
[null,null,null,"2016-03-10"]
[null,null,null,"2016-03-11"]
[null,null,null,"2016-03-12"]
[null,null,null,"2016-03-13"]
[null,null,null,"2016-03-14"]
[null,null,null,"2016-03-15"]
[null,null,null,"2016-03-16"]
[null,null,null,"2016-03-17"]
[null,null,null,"2016-03-18"]
[null,null,null,"2016-03-19"]
[null,null,null,"2016-03-20"]
[null,null,null,"2016-03-21"]
[null,null,null,"2016-03-22"]
[null,null,null,"2016-03-23"]
[null,null,null,"2016-03-24"]
[null,null,null,"2016-03-25"]
[null,null,null,"2016-03-26"]
[null,null,null,"2016-03-27"]
[null,null,null,"2016-03-28"]
[null,null,null,"2016-03-29"]
[null,null,null,"2016-03-30"]
[null,null,null,"2016-03-31"]
[null,null,null,"2016-04-01"]
[null,null,null,"2016-04-02"]
[null,null,null,"2016-04-03"]
[null,null,null,"2016-04-04"]
[null,null,null,"2016-04-05"]
[null,null,null,"2016-04-06"]
[null,null,null,"2016-04-07"]
[null,null,null,"2016-04-08"]
[null,null,null,"2016-04-09"]
[null,null,null,"2016-04-10"]
[null,null,null,"2016-04-11"]
[null,null,null,"2016-04-12"]
[null,null,null,"2016-04-13"]
[null,null,null,"2016-04-14"]
[null,null,null,"2016-04-15"]
[null,null,null,"2016-04-16"]
[null,null,null,"2016-04-17"]
[null,null,null,"2016-04-18"]
[null,null,null,"2016-04-19"]
[null,null,null,"2016-04-20"]
[null,null,null,"2016-04-21"]
[null,null,null,"2016-04-22"]
[null,null,null,"2016-04-23"]
[null,null,null,"2016-04-24"]
[null,null,null,"2016-04-25"]
[null,null,null,"2016-04-26"]
[null,null,null,"2016-04-27"]
[null,null,null,"2016-04-28"]
[null,null,null,"2016-04-29"]
[null,null,null,"2016-04-30"]
[null,null,null,"2016-05-01"]
[null,null,null,"2016-05-02"]
[null,null,null,"2016-05-03"]
[null,null,null,"2016-05-04"]
[null,null,null,"2016-05-05"]
[null,null,null,"2016-05-06"]
[null,null,null,"2016-05-07"]
[null,null,null,"2016-05-08"]
[null,null,null,"2016-05-09"]
[null,null,null,"2016-05-10"]
[null,null,null,"2016-05-11"]
[null,null,null,"2016-05-12"]
[null,null,null,"2016-05-13"]
[null,null,null,"2016-05-14"]
[null,null,null,"2016-05-15"]
[null,null,null,"2016-05-16"]
[null,null,null,"2016-05-17"]
[null,null,null,"2016-05-18"]
[null,null,null,"2016-05-19"]
[null,null,null,"2016-05-20"]
[null,null,null,"2016-05-21"]
[null,null,null,"2016-05-22"]
[null,null,null,"2016-05-23"]
[null,null,null,"2016-05-24"]
[null,null,null,"2016-05-25"]
[null,null,null,"2016-05-26"]
[null,null,null,"2016-05-27"]
[null,null,null,"2016-05-28"]
[null,null,null,"2016-05-29"]
[null,null,null,"2016-05-30"]
[null,null,null,"2016-05-31"]
[null,null,null,"2016-06-01"]
[null,null,null,"2016-06-02"]
[null,null,null,"2016-06-03"]
[null,null,null,"2016-06-04"]
[null,null,null,"2016-06-05"]
[null,null,null,"2016-06-06"]
[null,null,null,"2016-06-07"]
[null,null,null,"2016-06-08"]
[null,null,null,"2016-06-09"]
[null,null,null,"2016-06-10"]
[null,null,null,"2016-06-11"]
[null,null,null,"2016-06-12"]
[null,null,null,"2016-06-13"]
[null,null,null,"2016-06-14"]
[null,null,null,"2016-06-15"]
[null,null,null,"2016-06-16"]
[null,null,null,"2016-06-17"]
[null,null,null,"2016-06-18"]
[null,null,null,"2016-06-19"]
[null,null,null,"2016-06-20"]
[null,null,null,"2016-06-21"]
[null,null,null,"2016-06-22"]
[null,null,null,"2016-06-23"]
[null,null,null,"2016-06-24"]
[null,null,null,"2016-06-25"]
[null,null,null,"2016-06-26"]
[null,null,null,"2016-06-27"]
[null,null,null,"2016-06-28"]
[null,null,null,"2016-06-29"]
[null,null,null,"2016-06-30"]
[null,null,null,"2016-07-01"]
[null,null,null,"2016-07-02"]
[null,null,null,"2016-07-03"]
[null,null,null,"2016-07-04"]
[null,null,null,"2016-07-05"]
[null,null,null,"2016-07-06"]
[null,null,null,"2016-07-07"]
[null,null,null,"2016-07-08"]
[null,null,null,"2016-07-09"]
[null,null,null,"2016-07-10"]
[null,null,null,"2016-07-11"]
[null,null,null,"2016-07-12"]
[null,null,null,"2016-07-13"]
[null,null,null,"2016-07-14"]
[null,null,null,"2016-07-15"]
[null,null,null,"2016-07-16"]
[null,null,null,"2016-07-17"]
[null,null,null,"2016-07-18"]
[null,null,null,"2016-07-19"]
[null,null,null,"2016-07-20"]
[null,null,null,"2016-07-21"]
[null,null,null,"2016-07-22"]
[null,null,null,"2016-07-23"]
[null,null,null,"2016-07-24"]
[null,null,null,"2016-07-25"]
[null,null,null,"2016-07-26"]
[null,null,null,"2016-07-27"]
[null,null,null,"2016-07-28"]
[null,null,null,"2016-07-29"]
[null,null,null,"2016-07-30"]
[null,null,null,"2016-07-31"]
[null,null,null,"2016-08-01"]
[null,null,null,"2016-08-02"]
[null,null,null,"2016-08-03"]
[null,null,null,"2016-08-04"]
[null,null,null,"2016-08-05"]
[null,null,null,"2016-08-06"]
[null,null,null,"2016-08-07"]
[null,null,null,"2016-08-08"]
[null,null,null,"2016-08-09"]
[null,null,null,"2016-08-10"]
[null,null,null,"2016-08-11"]
[null,null,null,"2016-08-12"]
[null,null,null,"2016-08-13"]
[null,null,null,"2016-08-14"]
[null,null,null,"2016-08-15"]
[null,null,null,"2016-08-16"]
[null,null,null,"2016-08-17"]
[null,null,null,"2016-08-18"]
[null,null,null,"2016-08-19"]
[null,null,null,"2016-08-20"]
[null,null,null,"2016-08-21"]
[null,null,null,"2016-08-22"]
[null,null,null,"2016-08-23"]
[null,null,null,"2016-08-24"]
[null,null,null,"2016-08-25"]
[null,null,null,"2016-08-26"]
[null,null,null,"2016-08-27"]
[null,null,null,"2016-08-28"]
[null,null,null,"2016-08-29"]
[null,null,null,"2016-08-30"]
[null,null,null,"2016-08-31"]
[null,null,null,"2016-09-01"]
[null,null,null,"2016-09-02"]
[null,null,null,"2016-09-03"]
[null,null,null,"2016-09-04"]
[null,null,null,"2016-09-05"]
[null,null,null,"2016-09-06"]
[null,null,null,"2016-09-07"]
[null,null,null,"2016-09-08"]
[null,null,null,"2016-09-09"]
[null,null,null,"2016-09-10"]
[null,null,null,"2016-09-11"]
[null,null,null,"2016-09-12"]
[null,null,null,"2016-09-13"]
[null,null,null,"2016-09-14"]
[null,null,null,"2016-09-15"]
[null,null,null,"2016-09-16"]
[null,null,null,"2016-09-17"]
[null,null,null,"2016-09-18"]
[null,null,null,"2016-09-19"]
[null,null,null,"2016-09-20"]
[null,null,null,"2016-09-21"]
[null,null,null,"2016-09-22"]
[null,null,null,"2016-09-23"]
[null,null,null,"2016-09-24"]
[null,null,null,"2016-09-25"]
[null,null,null,"2016-09-26"]
[null,null,null,"2016-09-27"]
[null,null,null,"2016-09-28"]
[null,null,null,"2016-09-29"]
[null,null,null,"2016-09-30"]
[null,null,null,"2016-10-01"]
[null,null,null,"2016-10-02"]
[null,null,null,"2016-10-03"]
[null,null,null,"2016-10-04"]
[null,null,null,"2016-10-05"]
[null,null,null,"2016-10-06"]
[null,null,null,"2016-10-07"]
[null,null,null,"2016-10-08"]
[null,null,null,"2016-10-09"]
[null,null,null,"2016-10-10"]
[null,null,null,"2016-10-11"]
[null,null,null,"2016-10-12"]
[null,null,null,"2016-10-13"]
[null,null,null,"2016-10-14"]
[null,null,null,"2016-10-15"]
[null,null,null,"2016-10-16"]
[null,null,null,"2016-10-17"]
[null,null,null,"2016-10-18"]
[null,null,null,"2016-10-19"]
[null,null,null,"2016-10-20"]
[null,null,null,"2016-10-21"]
[null,null,null,"2016-10-22"]
[null,null,null,"2016-10-23"]
[null,null,null,"2016-10-24"]
[null,null,null,"2016-10-25"]
[null,null,null,"2016-10-26"]
[null,null,null,"2016-10-27"]
[null,null,null,"2016-10-28"]
[null,null,null,"2016-10-29"]
[null,null,null,"2016-10-30"]
[null,null,null,"2016-10-31"]
[null,null,null,"2016-11-01"]
[null,null,null,"2016-11-02"]
[null,null,null,"2016-11-03"]
[null,null,null,"2016-11-04"]
[null,null,null,"2016-11-05"]
[null,null,null,"2016-11-06"]
[null,null,null,"2016-11-07"]
[null,null,null,"2016-11-08"]
[null,null,null,"2016-11-09"]
[null,null,null,"2016-11-10"]
[null,null,null,"2016-11-11"]
[null,null,null,"2016-11-12"]
[null,null,null,"2016-11-13"]
[null,null,null,"2016-11-14"]
[null,null,null,"2016-11-15"]
[null,null,null,"2016-11-16"]
[null,null,null,"2016-11-17"]
[null,null,null,"2016-11-18"]
[null,null,null,"2016-11-19"]
[null,null,null,"2016-11-20"]
[null,null,null,"2016-11-21"]
[null,null,null,"2016-11-22"]
[null,null,null,"2016-11-23"]
[null,null,null,"2016-11-24"]
[null,null,null,"2016-11-25"]
[null,null,null,"2016-11-26"]
[null,null,null,"2016-11-27"]
[null,null,null,"2016-11-28"]
[null,null,null,"2016-11-29"]
[null,null,null,"2016-11-30"]
[null,null,null,"2016-12-01"]
[null,null,null,"2016-12-02"]
[null,null,null,"2016-12-03"]
[null,null,null,"2016-12-04"]
[null,null,null,"2016-12-05"]
[null,null,null,"2016-12-06"]
[null,null,null,"2016-12-07"]
[null,null,null,"2016-12-08"]
[null,null,null,"2016-12-09"]
[null,null,null,"2016-12-10"]
[null,null,null,"2016-12-11"]
[null,null,null,"2016-12-12"]
[null,null,null,"2016-12-13"]
[null,null,null,"2016-12-14"]
[null,null,null,"2016-12-15"]
[null,null,null,"2016-12-16"]
[null,null,null,"2016-12-17"]
[null,null,null,"2016-12-18"]
[null,null,null,"2016-12-19"]
[null,null,null,"2016-12-20"]
[null,null,null,"2016-12-21"]
[null,null,null,"2016-12-22"]
[null,null,null,"2016-12-23"]
[null,null,null,"2016-12-24"]
[null,null,null,"2016-12-25"]
[null,null,null,"2016-12-26"]
[null,null,null,"2016-12-27"]
[null,null,null,"2016-12-28"]
[null,null,null,"2016-12-29"]
[null,null,null,"2016-12-30"]
[null,null,null,"2016-12-31"]
[null,null,null,"Ежедневно"]